{"text_format":"1","workbook":"xlsx","n_sheets":11,"sheets":["MERLIN 2500 CONF.","COND.VENTE","MERLIN 2500","OPTIONS","PASSERELLE","BAC A JUS","LOGICIEL","COMMANDE","POMPE","ACCESSOIRES","REMPLISSAGE"],"not_rendered":{"charts":0,"images":24,"macros":0,"external_links":0,"defined_names":20,"comments":0,"pivot_tables":0},"unopened":[],"bounds":{"document_bytes":16777216,"sheet_cells":100000,"rows_first":2000,"rows_last":500,"rows_between":2000,"halvings":0,"cell_chars":16384,"cell_head_chars":4096},"cells_cut":0,"cells_raw":0,"read":"whole","date_system":"1900"}

{"sheet":"MERLIN 2500 CONF.","index":0,"n_rows":103,"n_cols":7,"rows_kept":103,"cut":false,"hidden":false,"merged":[[0,3,0,6]]}
[null,null,null,"MERLIN Plus + 2500"]
[]
[null,"CODE",null,"DESCRIPTION","PRIX","CHOIX","Total"]
[null,null,null,{"$f":"_xlfn.IFNA(VLOOKUP(D5,#REF!,4,FALSE),\"\")","v":{"$error":"#REF!"}},null,1]
[null,"0225.0000.0019",null,"MERLIN PLUS + 2500",65000,null,{"$f":"IF(F4=4,E8,IF(F4=3,E7,IF(F4=2,E6,E5)))","v":65000}]
[null,null,null,"RABAIS POUR AVANT 30 SEPTEMBRE 7%",{"$f":"E5*0.93","v":60450}]
[null,null,null,"RABAIS POUR AVANT 30 NOVEMBRE 5%",{"$f":"E5*0.95","v":61750}]
[null,null,null,"RABAIS POUR AVANT 30 JANVIER  3%",{"$f":"E5*0.97","v":63050}]
[]
[null,"0251.0071.0017",null,"Compreseur integré",3700,false,{"$f":"IF(F10=TRUE,E10,\"0.00 €\")","v":"0.00 €"}]
[]
[null,"Autres options"]
[null,"0199.0100.0121",null,"Commande d‘urgence manuelle avec boîte à boutons pendante",520,false,{"$f":"IF(F13=TRUE,E13,\"0.00 €\")","v":"0.00 €"}]
[]
[null,"Rallonges des pieds",null,null,null,6]
[null,"0240.0105.0107     ",null,"Rallonges des pieds de 100 mm",1050,null,{"$f":"IF(F15=1,E16,IF(F15=2,E17,IF(F15=3,E18,IF(F15=4,E19,IF(F15=5,E20,E21)))))","v":0}]
[null,"0240.0105.0207    ",null,"Rallonges des pieds de 200 mm",1350,null,"."]
[null,"0240.0105.0307     ",null,"Rallonges des pieds de 300 mm",1520]
[null,"0240.0105.0407     ",null,"Rallonges des pieds de 400 mm",1710]
[null,"0240.0105.0507     ",null,"Rallonges des pieds de 500 mm",1910]
[null,null,null,"Autres réhaussements sur demande"]
[]
[null,"Passerelle"]
[null,"0225.0200.2807.1  ",null,"Passerelle avec garde-corps - montée AS droite ou GS gauche Uniquement en combinaison avec un escalier avec garde-corps à gauche ou échelle",4300,false,{"$f":"IF(F24=TRUE,E24,\"0.00 €\")","v":"0.00 €"}]
[null,"0225.0200.2807.2  ",null,"Passerelle avec garde-corps - montée AS gauche ou GS  droite Uniquement en combinaison avec un escalier avec garde-corps à droite ou échelle",4300,false,{"$f":"IF(F25=TRUE,E25,\"0.00 €\")","v":"0.00 €"}]
[null,"0240.0200.1200     ",null,"Escalier pour passerelle H=1200 / Rail.= 300 – rambarde à droite\nAttention: il y a besoin d'un rehaussement de min. 300 mm qui n'est pas inclu dans le prix de I' êpuipment standard de I’ inertage.",1700,false,"0.00 €"]
[null,"0240.0201.1200     ",null,"Escalier pour passerelle H=1200 / Rail.= 300 – rambarde à gauche\nAttention: il y a besoin d'un rehaussement de min. 300 mm qui n'est pas inclu dans le prix de I’ épuipment standard de I' inertage.",1700,false,"0.00 €"]
[null,"0250.0200.1307     ",null,"Échelle pour passerelle H=1300 / Rail. = 400\nAttention: il y a besoin d'un rehaussement de min. 400 mm qui n'est pas inclus dans le prix de I’ équipement standard de I’ inertage.",1000,false,"0.00 €"]
[null,"0225.0200.0207     ",null,"Passerelle avec marches en inox\nPour des raisons de sécurité, la passerelle doit être équipée d'une protection appropriée contre les chutes, ou bien la machine doit être disposée contre un mur.",1300,false,"0.00 €"]
[]
[null,"Commande de pompe à moût"]
[null,"0125.0099.0127",null,"Commande de pompe à moût et protection de débordement du bac (APS - Automatic Press Stop)",1900,false,{"$f":"IF(F32=TRUE,E32,\"0.00 €\")","v":"0.00 €"}]
[]
[null,"Options logiciel"]
[null,"9250.0199.0014",null,"Programme de \"Rocking\" (balancement de la cuve).",750,false,{"$f":"IF(F35=TRUE,E35,\"0.00 €\")","v":"0.00 €"}]
[null,"9250.0199.0034",null,"Démarrage décalé du programme de pressurage.",750,false,{"$f":"IF(F36=TRUE,E36,\"0.00 €\")","v":"0.00 €"}]
[null,"9250.0199.0044",null,"Remplissage avec membrane gonflée (logiciel).",750,false,"0.00 €"]
[null,"0000.0909.0168",null,"Willmes SMART Interface 4.0\nInterface pour la communication entre la presse et un système de contrôle de niveau supérieur constitué d'un processeur de communication qui traite les données traitées utilisant un protocole TCP via une interface Ethernet, ainsi que le logiciel dans l'automate pour fournir les données\nUn ensemble de données contenant diverses informations est envoyé â intervalles réguliers sur l'état actuel de la presse (points de consigne, valeurs réelles, blocages de vannes et d'entraînements ainsi que les conditions de fonctionnement et ingérence). Les valeurs peuvent également être transférées à la presse via l'échange de données.\nLa préparation des données envoyées pour le système informatique utilisé par le client ou la visualisation doit être effectuée par le client doit être effectué par le client. La connexion au réseau du client doit se faire par une liaison câblée ou par une connexion WIFI.\nLa maintenance/diagnostic à distance est possible via un routeur et un point d'accès WiFi",3300,false,"0.00 €"]
[]
[]
[null,"Bac à jus et accessoires"]
[null,"0225.0110.0039",null,"Bac à jus de 800 litres sur roues avec sortie en DN 65",1600,false,{"$f":"IF(F42=TRUE,E42,\"0.00 €\")","v":"0.00 €"}]
[null,"0125.0920.1024",null,"Raccord universel au bac a jus en sortie libre à souder DN 40-65, excentré",220,false,{"$f":"IF(F43=TRUE,E43,\"0.00 €\")","v":"0.00 €"}]
[null,"0125.0920.1044",null,"Raccord universel au bac a jus en sortie libre à souder DN 50-65, excentré",220,false,{"$f":"IF(F44=TRUE,E44,\"0.00 €\")","v":"0.00 €"}]
[]
[null,"Commande"]
[null,"0250.1079.0157",null,"Commande UCEplus + Champagne conforme au CIVC.",1200,false,{"$f":"IF(F47=TRUE,E47,\"0.00 €\")","v":"0.00 €"}]
[null,"0250.1079.0117",null,"Commande - programme VSQ",1200,false,{"$f":"IF(F48=TRUE,E48,\"0.00 €\")","v":"0.00 €"}]
[]
[null,"Terminal de commande"]
[null,"9250.1399.0016.01",null,"Écran tactile 7 avec connexion au cloud pour application de bureau et mobile.",4000,false,{"$f":"IF(F51=TRUE,E51,\"0.00 €\")","v":"0.00 €"}]
[null,"9250.1399.0017",null,"Pupitre de commande avec écran tactile en couleur, 10\" TFT-LCD",1570,false,{"$f":"IF(F52=TRUE,E52,\"0.00 €\")","v":"0.00 €"}]
[null,"0125.0080.0016",null,"Tableau de commande avec support et couvercle  ",890,false,{"$f":"IF(F53=TRUE,E53,\"0.00 €\")","v":"0.00 €"}]
[]
[null,"Rallonge de câble du pupitre"]
[null,"9250.9900.0040",null,"Câble pour pupitre - 5m",430,false,{"$f":"IF(F56=TRUE,E56,\"0.00 €\")","v":"0.00 €"}]
[null,"9250.9900.0045",null,"Câble pour pupitre - 7m",455,false,{"$f":"IF(F57=TRUE,E57,\"0.00 €\")","v":"0.00 €"}]
[null,"9250.9900.0050",null,"Câble pour pupitre - 10m",480,false,{"$f":"IF(F58=TRUE,E58,\"0.00 €\")","v":"0.00 €"}]
[null,"9250.9900.0055",null,"Câble pour pupitre - 12.5m",505,false,"0.00 €"]
[null,"9250.9900.0060",null,"Câble pour pupitre - 15m",530,false,"0.00 €"]
[null,"9250.9900.0065",null,"Câble pour pupitre - 17.5m",555,false,"0.00 €"]
[null,"9250.9900.0070",null,"Câble pour pupitre - 20m",580,false,"0.00 €"]
[null,"9250.9900.0080",null,"Câble pour pupitre - 25m pour unite de SPS",630,false,"0.00 €"]
[]
[null,"Remplissage axial"]
[null,"0240.0050.1047",null,"Remplissage axial DN 125 avec robinet à bille et dispositif de surpression",3400,false,{"$f":"IF(F66=TRUE,E66,\"0.00 €\")","v":"0.00 €"}]
[null,"0000.0157.0027",null,"Raccord coudé à 90° pour remplissage axial en DN 125, complet avec fixation",790,false,{"$f":"IF(F67=TRUE,E67,\"0.00 €\")","v":"0.00 €"}]
[null,"0240.0972.0047",null,"Bride pour axial en DN 125 avec raccord VT 90 filet d'empâtage",300,false,{"$f":"IF(F68=TRUE,E68,\"0.00 €\")","v":"0.00 €"}]
[null,"0240.0972.0207",null,"Bride pour axial en DN 125 avec raccord DIN 100",400,false,"0.00 €"]
[null,"0240.0972.0077",null,"Bride pour axial en DN 125 avec raccord DN 125 filet rond",400,false,"0.00 €"]
[]
[null,"Accessoires disponibles"]
[null,"5100.2021.0094",null,"Dosage SO2 avec pompe doseuse 50 L/h et station avec réservoir 35 L + vannes complètes.",7000,false,{"$f":"IF(F73=TRUE,E73,\"0.00 €\")","v":"0.00 €"}]
[null,"7921.0001.0657",null,"Dosage SO2 avec pompe doseuse 50 L/h et station avec réservoir 35 L + vannes complètes + débimètre DN 65 compl.",16000,false,{"$f":"IF(F74=TRUE,E74,\"0.00 €\")","v":"0.00 €"}]
[null,"7981.0003.0065",null,"Débitmètre Promag H 300, 5H3B65, DN65 2 1/2\" avec support et kit de connecteurs",9000,false,"0.00 €"]
[null,"0251.0095.0017",null,"Vanne de macération DN 32 avec levier à main  ",400,false,"0.00 €"]
[null,"0251.0112.0507",null,"Tamis à jus pour plateau coulissant",350,false,{"$f":"IF(F77=TRUE,E77,\"0.00 €\")","v":"0.00 €"}]
[null,"7310.0000.0004",null,"Bac à marcs basculant sur roues, inox, envr. 850 Itrs., 1700 x 1800 x 460",4950,false,{"$f":"IF(F78=TRUE,E78,\"0.00 €\")","v":"0.00 €"}]
[null,"0000.5100.0180",null,"Bâche de protection avec logo Willmess / Prix sur demande"]
[]
[null,"Remplissage par porte"]
[null,"0234.0035.0037",null,"Support de tuyau de vendange pour remplissage par les portes, sortie en 90 filet le vendange foulée",500,false,{"$f":"IF(F82=TRUE,E82,\"0.00 €\")","v":"0.00 €"}]
[null,"0234.0035.0057",null,"Support de tuyau de vendange pour remplissage par les portes, sortie en DN 65",500,false,{"$f":"IF(F83=TRUE,E83,\"0.00 €\")","v":"0.00 €"}]
[null,"0234.0035.0047",null,"Support de tuyau de vendange pour remplissage par les portes, sortie en DN 100",500,false,"0.00 €"]
[null,"0234.0035.0067",null,"Support de tuyau de vendange pour remplissage par les portes, sortie en DN 125",500,false,"0.00 €"]
[null,"0225.0215.0227",null,"Trémie de remplissage, entièrement en inox avec guidage pour chariot élévateur",5700,false,{"$f":"IF(F86=TRUE,E86,\"0.00 €\")","v":"0.00 €"}]
[null,"0225.0215.0217",null,"Trémie d’ alimentation avec anses pour chariot élévateur / Prix sur demande"]
[null,"0225.0215.0237",null,"Trémie d' alimentation avec anses à accrocher / Prix sur demande"]
[]
[null,"Pièces de rechange et maintenance"]
[null,"0225.0910.0027",null,"Kit de pièces de rechange sans membrane, version à compresseur externe M200-M1800",2800,false,{"$f":"IF(F91=TRUE,E91,\"0.00 €\")","v":"0.00 €"}]
[null,"0225.0910.0047",null,"Kit de pièces de rechange sans membrane, version à compresseur externe M200-M1800",1040,false,{"$f":"IF(F92=TRUE,E92,\"0.00 €\")","v":"0.00 €"}]
[null,"0000.0000.0117",null,"Kit de pièces de rechange pour air comprimé interne moyen KDT3/80 Sigma& Merlin",1490,false,"0.00 €"]
[null,"0000.0000.0115",null,"Lubrifiant - Paquet",280,false,"0.00 €"]
[null,"0000.0000.0110",null,"Kit de lubrification Sigma & Merlin",640,false,"0.00 €"]
[null,"0251.0099.0007",null,"Support de nettoyage pour drains rigides (Merlin), entièrement en inox",500,false,{"$f":"IF(F96=TRUE,E96,\"0.00 €\")","v":"0.00 €"}]
[]
[null,null,null,"Total EURO HT",null,null,{"$f":"SUM(G5:G97)","v":65000}]
[null,null,null,"TRANSPORT",2500,false,{"$f":"IF(F99=TRUE,E99,\"0.00 €\")","v":"0.00 €"}]
[null,null,null,"MISE EN ROUTE",1000,false,{"$f":"IF(F100=TRUE,E100,\"0.00 €\")","v":"0.00 €"}]
[null,null,null,"Total FINAL",null,null,{"$f":"SUM(G98:G100)","v":65000}]
[]
[null,"Conditions de vente"]

{"sheet":"COND.VENTE","index":1,"n_rows":71,"n_cols":3,"rows_kept":71,"cut":false,"hidden":false,"merged":[[12,2,12,10],[0,1,0,10],[3,2,3,10],[4,2,4,10],[5,2,5,10],[6,2,6,10],[7,2,7,10],[8,2,8,10],[9,2,9,10],[10,1,11,1],[10,2,10,10],[11,2,11,10],[23,1,24,1],[23,2,23,10],[24,2,24,10],[13,2,13,10],[14,2,14,10],[15,2,15,10],[16,2,16,10],[17,2,17,10],[18,2,18,10],[19,2,19,10],[20,1,22,1],[20,2,20,10],[21,2,21,10],[22,2,22,10],[38,1,43,1],[38,2,38,10],[39,2,39,10],[40,2,40,10],[41,2,41,10],[47,2,47,10],[25,2,25,10],[26,2,26,10],[27,2,27,10],[28,2,28,10],[29,2,29,10],[42,2,42,10],[43,2,43,10],[44,2,44,10],[45,2,45,10],[46,2,46,10],[62,1,64,1],[62,2,62,10],[63,2,63,10],[64,2,64,10],[48,2,48,10],[49,2,49,10],[50,2,50,10],[51,2,51,10],[52,2,52,10],[53,2,53,10],[65,2,65,10],[54,2,54,10],[55,2,55,10],[56,2,56,10],[57,2,57,10],[58,2,58,10]]}
[null,"CONDITIONS DE VENTE"]
[]
[]
[null,"DELAY LIVRAISON","180 jours départ usine à partir de la date de réception de l’acompte."]
[null,"MISE EN PLACE","Pas comprise dans l’offre."]
[null,"MISE EN ROUTE","Comprise dans l’offre."]
[null,"TRANSPORT ET FRAIS DE DOUANE","Compris dans l’offre."]
[null,"VALIDITE DE L’OFFRE","30 jours. "]
[null,"ESSAI DES MACHINE","Chez la fabrique de que prêtes."]
[null,"PAYEMENT","1/3 a la commande et 2/3 a machine prête avant livraison."]
[null,"T.V.A.","Exclues"]
[null,null,"Marchandises provenant de fournisseurs étrangers, dédouanées avec facture CH – CH, sans TVA. La TVA est à la charge du destinataire ou de l’importateur, elle est prélevée au moment du franchissement de la frontière des biens par les autorités douanières suisses via votre compte en douane ou celui du transitaire."]
[null,"GARANTIE ","Période de garantie :"]
[null,null,"2 ans sur les machines et 25 sur les cuves (partie inox)."]
[null,null,"TERMES DE LA GARANTIE"]
[null,null,"La garantie couvre :"]
[null,null,"Le remplacement des pièces qui s’avèrent défectueuses à l’origine pour vices de fabrication."]
[null,null,"Les pannes irréparables ou les anomalies répétées ayant la même origine. Le constructeur pourra alors décider de remplacer la machine, selon son jugement sans appel. Dans ce cas, la garantie sur la nouvelle machine dure jusqu’à l’échéance du contrat d’origine."]
[null,null,"La garantie ne couvre pas :"]
[null,null,"Les pannes dues à un usage impropre de la machine. La responsabilité pour les dommages éventuels, directs ou indirects, aux personnes, aux choses et aux animaux dus à l’inobservation des instructions reportées dans ce manuel et concernant notamment les indications pour l’installation, l’utilisation et la maintenance de la machine. Les parties qui s’avèrent défectueuses à cause de la négligence au niveau de l’utilisation (non-respect des instructions pour le fonctionnement de la machine), d’une mauvaise installation ou d’une maintenance inadéquate. Les réparations (ou les tentatives de réparation) effectuées par du personnel non autorisé par le constructeur. Les dommages dus au transport ou aux circonstances qui n’ont rien à voir avec un vice de fabrication de la machine. Les opérations concernant le montage, le raccordement et le branchement aux circuits d’alimentation. Les frais et les risques de transport pour l’envoi de la machine à l’un des services après-vente agréés. Les composants électriques les frais de main-d’œuvre, les pièces sujettes à usure et la maintenance ordinaire citée dans le manuel."]
[null,"PROPRIETE DU MATERIEL","Au sens des articles 715 et 716 du CC et 214 al. 3 du CO, les parties, en accord commun, soussignent que les marchandises livrées restent de propriété de « Quality Wine sarl » jusqu’à quand ceci a reçu le payement intégral de la fourniture (vente soumise à réservation de propriété)."]
[null,null,"Pour toutes les ventes soumises au payement d’un acompte à titre d’arrhes, il est précisé que dans le cas d’annulation de la vente l’intégralité des arrhes sera conservée à titre de frais d’annulation et d’indemnité."]
[null,null,"Si le solde des factures n’est pas reçu dans le délai de trois mois Quality Wine Sarl est en droit d’annuler la vente et de conserver tout montant verser à titre d’arrhes."]
[null,"RETARD DE PAYEMENT","Les dates de paiement convenues sont en même temps les termes d'échéance qui engendrent les intérêts moratoires légaux. Le taux annuel de ces derniers est de 6%."]
[null,null,"Si l’acheteur a du retard dans le paiement des acomptes convenus, la maison Quality Wine peut, selon les dispositions Art. 226h alinéa 2 du CO, exiger le solde du prix d’achat ou résilier le contrat."]
[null,"ENGAGEMENT","Les promesses verbales de nos représentants ne nous engagent que si elles ont été confirmées par écrit."]
[null,"LIVRAISON","Notre livraison n'englobe que le matériel mentionné dans notre confirmation de commande, soit en exécution selon documentation, si rien d'autre n'a été convenu. Tous dispositifs supplémentaires ou toutes modifications de nos machines et appareils, que le client pourrait exiger ultérieurement, vont à sa charge."]
[null,"ECHANTILLONS","Les échantillons nécessaires aux essais d'usage en nos usines doivent être envoyés franco et gratuitement à nos fournisseurs.  Le retard de la livraison des échantillons porte à un retard de livraison du produit."]
[null,"RETARD DE LIVRAISON","Aucune responsabilité ne nous incombe pour la non-observation du délai de livraison fixé si ce retard est dû aux causes suivantes: défaut de matériau d'une pièce de la machine se présentant en cours de construction, difficultés imprévues quant à l'approvisionnement ou en cours de fabrication, grèves, guerre, mobilisation et pandémie blocus, défense d'importation ou d'exportation ou toute autre raison de force majeure. En cas d'un tel retard de livraison, le client ne peut annuler sa commande ou faire valoir des indemnités quelconques."]
[null,"HORAIRE DE MONTAGE ET MISE EN ROUTE ","Les mécaniciens de notre maison ou de nos fournisseurs procédant à des montages chez nos clients doivent avoir la possibilité de travailler en dehors des heu- res d'ouverture normales, ceci sans frais pour nous."]
[]
[]
[]
[]
[]
[]
[]
[]
[null,"PRIX","Nos prix s'entendent nets, sans aucune déduction même en cas de payement anticipé par rapport au contrat."]
[null,null,"Tous rabais ou escomptes éventuels doivent être fixés lors de la commande."]
[null,null,"La maison Quality Wine sarl ne peut, en aucun cas, être tenue de participer à des frais de publicité, si ceux-ci n'ont pas été convenus lors de l'achat de la machine."]
[null,null,"L’utilisation des images des machines vendues dans votre site de production peut être utilise gratuitement et librement de la part de Quality Wine."]
[null,null,"Le montant faisant l'objet du présent contrat ne peut en aucun cas être compensé avec une créance éventuelle."]
[null,null,"Tous les frais d'encaissement, de garantie bancaire et de crédit sont à la charge du client."]
[null,"PROPRIETE INTELECTUELLE","Les plans que nous établissons restent notre propriété et ne peuvent être remis à des tierces personnes ou utilisés à d'autres fins."]
[null,"ACCORD DE CONFIDENTIALITÉ","• que le client développe (ci-après dénommés \"Produits\") et possède des données et informations techniques et de production, des connaissances et savoir-faire relatifs aux Produits, d'une valeur économique et industrielle particulière, et caractérisés par le secret (ci-après dénommés \"Informations confidentielles\")."]
[null,null,"• que le Destinataire est intéressé à connaître certains détails relatifs au contenu de ces informations, afin d'évaluer l'opportunité de conclure un contrat de vente des Produits, s'engageant, selon les termes et conditions prévus dans le présent accord, à ne pas utiliser et de ne pas divulguer ces informations."]
[null,"ATTENDU QUE","• Rien dans le présent Accord ne doit être interprété comme accordant ou conférant des droits de licence et d'autres droits sur les Informations confidentielles ou un engagement à conclure toute relation contractuelle actuelle ou future (sauf comme expressément indiqué dans ce document)."]
[null,null,"TOUTE CET AVANT-PROPOS, IL EST CONVENU PAR LA PRÉSENTE DE CE QUI SUIT."]
[null,null,"INFORMATIONS CONFIDENTIELLES. Aux fins du présent accord, les \"informations confidentielles\" désignent tout type d'informations techniques, production, conception, invention, procédure, amélioration, technologie, méthodologie, connaissances, savoir-faire, brevet, concept, contenu dans les dessins, projets, cartes et spécifications techniques des produits, descriptions, fichiers électroniques, échantillons, etc."]
[null,null,"Informations exclues. Les Informations Confidentielles ne comprennent pas, et les obligations du Destinataire ne concernent pas les informations qui: (a) sont déjà dans le domaine public au moment de sa communication, ou qui le deviennent plus tard, sans que le Destinataire ne soit responsable de la violation de cet accord; (b) sont déjà connus du destinataire au moment de la révélation par le client, à condition qu'il puisse en fournir la preuve (c) ils sont traités par le destinataire de manière totalement indépendante, à condition qu'il puisse en fournir la preuve; (d) sont déjà connus du Destinataire au moment de la communication, car transmis par un tiers autorisé à le faire et non lié par une obligation de confidentialité relative à l'utilisation ou à la communication de ces informations, dont le Destinataire peut apporter la preuve, (et ) dont la divulgation avait été préalablement autorisée par écrit."]
[null,null,"OBLIGATIONS DU DESTINATAIRE Le destinataire ne peut en aucun cas utiliser les informations confidentielles ni autoriser leur utilisation par des tiers, sauf dans le but d'évaluer si les produits possèdent les caractéristiques et les exigences requises par le destinataire et de procéder à l'achat avec un contrat de vente distinct. . Le destinataire ne peut pas utiliser les informations confidentielles pour développer un produit similaire ou concurrent directement ou par l'intermédiaire de tiers."]
[null,null,"Le destinataire prendra toutes les mesures pour s'assurer que les informations confidentielles restent secrètes et ne peut pas les divulguer ou les communiquer de quelque manière que ce soit à des tiers, à l'exception de ceux qui sont des employés et des consultants étroitement impliqués dans le processus d'évaluation."]
[null,null,"Le destinataire sera responsable et indemnisera le client  pour tout dommage, perte, coût (y compris, mais pas exclusivement, les frais juridiques) résultant de la violation du présent accord ou lié à la divulgation ou à l'utilisation d'informations confidentielles par ses employés, entités associées, filiales o sociétés mères, mandataires, consultants et tiers."]
[null,null,"Le destinataire, sur demande écrite du client, retournera immédiatement tout matériel en sa possession contenant des informations confidentielles."]
[null,null,"OBLIGATIONS DU CLIENT Le client ne peut en aucun cas utiliser les informations confidentielles ni autoriser leur utilisation par des tiers, même dans le but d'évaluer si des produits alternatifs de la concurrence possèdent les caractéristiques et les exigences requises par client. Le client ne peut pas utiliser les informations confidentielles pour développer ou acheter un produit similaire ou concurrent directement ou par l'intermédiaire de tiers."]
[null,null,"Le client sera responsable et indemnisera le destinataire pour tout dommage, perte, coût (y compris, mais pas exclusivement, les frais juridiques) résultant de la violation du présent accord ou lié à la divulgation ou à l'utilisation d'informations confidentielles par ses employés, entités associées, filiales o sociétés mères, mandataires, consultants et tiers."]
[null,null,"Le client, sur demande écrite du destinataire, retournera immédiatement tout matériel en sa possession contenant des informations confidentielles."]
[null,null,"Durée et efficacité. Les obligations de non-divulgation et de non-utilisation prévues dans le présent accord restent en vigueur pendant toute la période des négociations."]
[]
[]
[]
[null,"MAINTENANCE","La maison Quality Wine décline toute responsabilité pour pièces que le client commande directement ou pour travaux qu'il fait effectuer sans son consentement formel et  n’est plus garante si le client retarde le paiement ou s'il fait effectuer, par des tiers ."]
[null,null,"Les pièces détachées ORIGINELLE  sur les machine vendue par la société Quality Wine reste une exclusivité Quality Wine..  "]
[null,null,"Seulement les techniciens Quality Wine sont autorisé à réparer les machine en cas de garantie."]
[null,"ASSURANCES","Le transport de nos machines est assuré par nos soins. Les frais d'assurance sont à notre charge."]
[]
[]
[]
[]
[null,"Jean-Jacques Coquillard"]

{"sheet":"MERLIN 2500","index":2,"n_rows":14,"n_cols":11,"rows_kept":14,"cut":false,"hidden":false,"merged":[[1,1,1,3],[15,1,48,11]]}
[]
[null,"MERLIN PLUS+ 2500"]
[]
[]
[null,null,"VOLUME CUVE Lt",2.48,null,null,null,null,null,"SURFACE DE DRAINAGE","11.295 CmQ"]
[null,null,"TRAITEMENT RAISIN ENTIER","1.7 T / 2H",null,null,null,null,null,"SURFACE FORÉE","538 CmQ"]
[null,null,"TRAITEMENT RAISIN ÉGRAPPÉ","6.4 T /  2H",null,null,null,null,null,"NUMERO DRAIN","02"]
[null,null,"TRAITEMENT RAISIN FERMENTÉ","10.2 T /  1.5H",null,null,null,null,null,"VOLUME BAC","LT 490"]
[null,null,"VOLUME RAISIN ENTIER","1.700 Kg",null,null,null,null,null,"VITESSE ROTATION CUVE","4.5 u/Min"]
[null,null,"VOLUME RAISIN ÉGRAPPÉ","6.400 Kg",null,null,null,null,null,"PUISSENCE COMP INTERNE","8.20 Kw 17.2 A"]
[null,null,"VOLUME RAISIN FERMENTÉ","10.200 Kg",null,null,null,null,null,"PUISSENCE  COMP EXTERNE","3.7 Kw 8.70 A"]
[null,null,"POIDS Kg","1500 / 1550",null,null,null,null,null,"Lt / Min à 10 BAR COMP EXT",450]
[null,null,"MESURE PORTE","2X 391 X 754",null,null,null,null,null,"VOLUME BAC COMP EXT",420]
[null,null,"MESURE PORTE","2X 391 X 377",null,null,null,null,null,"RACCORD COMP EXT","3/4 Pc"]

{"sheet":"OPTIONS","index":3,"n_rows":44,"n_cols":7,"rows_kept":44,"cut":false,"hidden":false,"merged":[[1,1,1,3],[4,2,14,3]]}
[]
[null,"AUTRES OPTIONS"]
[]
[]
[null,null,null,null,null,null,"Compresseur intégré"]
[]
[]
[]
[]
[]
[]
[]
[]
[]
[]
[]
[]
[null,null,null,null,null,null,"Commande d'urgence"]
[null,null,null,null,null,null,"Manuelle avec boîtier à boutons, pendante"]
[]
[]
[]
[]
[]
[]
[]
[]
[]
[]
[]
[null,null,null,null,null,null,"Rallonges des pieds"]
[null,null,null,null,null,null,"Plusieurs longueurs à disposition"]
[]
[]
[]
[]
[]
[]
[]
[]
[]
[]
[]
[null,null,null,null,null,null,"Remplissage axial & Bride"]

{"sheet":"PASSERELLE","index":4,"n_rows":5,"n_cols":2,"rows_kept":5,"cut":false,"hidden":false,"merged":[[1,1,1,3]]}
[]
[null,"PASSERELLE ET ESCALIER"]
[]
[]
[null,"Passerelle et escalier"]

{"sheet":"BAC A JUS","index":5,"n_rows":5,"n_cols":2,"rows_kept":5,"cut":false,"hidden":false,"merged":[[1,1,1,3]]}
[]
[null,"BAC A JUS"]
[]
[]
[null,"Bac à jus"]

{"sheet":"LOGICIEL","index":6,"n_rows":49,"n_cols":9,"rows_kept":49,"cut":false,"hidden":false,"merged":[[1,1,1,4],[24,8,25,11],[28,8,35,11],[40,8,45,11],[48,8,59,11],[6,8,10,11],[13,8,19,11]]}
[]
[null,"LOGICIELS"]
[]
[]
[null,null,"Programme de \"Rocking\""]
[null,null,null,null,null,null,null,null,"Bref descriptif"]
[null,null,null,null,null,null,null,null,"Pour éviter le cône de déversement qui se forme lors du remplissage avec des raisins entiers sous l’effet de l‘ouverture de la porte, le programme de basculement les répartit délicatement dans la cuve grâce à un mouvement de pivotement et crée de l‘espace pour un autre remplissage – sans rotation complète. "]
[]
[]
[]
[]
[]
[null,null,null,null,null,null,null,null,"Caractéristiques et avantages "]
[null,null,null,null,null,null,null,null,"La cuve pivote une ou plusieurs fois vers la droite et la gauche selon un angle préalablement défini. Ce mouvement « doux » suffit pour répartir le cône de déversement dans la cuve et permettre un autre remplissage. L‘opérateur peut régler l‘angle de rotation de la cuve entre 15° et 90°, ainsi que le nombre de mouvements. À la fin du programme de basculement, la cuve est en position de remplissage. Le pressoir peut ainsi être rempli davantage et sa capacité de remplissage est optimisée. "]
[]
[]
[]
[]
[]
[]
[]
[]
[null,null,"Programme de remplissage avec membrane gonflée"]
[null,null,null,null,null,null,null,null,"Bref descriptif"]
[null,null,null,null,null,null,null,null,"Ce programme spécial permet un remplissage extrêmement délicat du pressoir via l‘ouverture de la porte. "]
[]
[]
[null,null,null,null,null,null,null,null,"Caractéristiques et avantages "]
[null,null,null,null,null,null,null,null,"La membrane est soumise à une pression d‘air comprimé jusqu‘à ce qu‘elle entre en contact avec les drains verticaux FLEXIDRAIN®. Il en résulte un coussin qui retient délicatement les raisins pendant le remplissage et minimise la charge mécanique sur le produit pressé. L‘air derrière la membrane s‘échappe en fonction de la quantité de raisin introduite, de sorte que les raisins ne « tombent jamais dans le vide » et que la capacité de remplissage du pressoir soit toujours optimisée. "]
[]
[]
[]
[]
[]
[]
[]
[]
[]
[null,null,"Smart Interface 4.0"]
[null,null,null,null,null,null,null,null,"Bref descriptif"]
[null,null,null,null,null,null,null,null,"La Smart Interface 4.0 se connecte à votre ordinateur via le réseau local. Les données actuelles du pressoir et les états de fonctionnement sont transmis au réseau du client au moyen de l’interface Ethernet via la connexion du réseau local. Les données peuvent alors être intégrées dans votre logiciel de visualisation des processus. "]
[]
[]
[]
[]
[]
[]
[null,null,null,null,null,null,null,null,"Caractéristiques et avantages "]
[null,null,null,null,null,null,null,null,"Pour une documentation sans faille, les données de pressurage peuvent être visualisées, enregistrées et évaluées dans le système informatique du client. Il est ainsi possible de procéder à une analyse globale du process, ce qui permet également d‘optimiser le processus de pressurage. La Smart Interface 4.0 est compatible avec tous les pressoirs SIGMA et MERLIN et peut être mise à niveau à tout moment. La télémaintenance est également possible via l‘interface Ethernet, à condition que l‘accès VPN soit configuré. La Smart Interface 4.0 requiert une extension matérielle avec un processeur de communication. Une adresse IP pour le pressoir et une connexion au réseau par câble doivent être configurées par le client. "]

{"sheet":"COMMANDE","index":7,"n_rows":55,"n_cols":9,"rows_kept":55,"cut":false,"hidden":false,"merged":[[55,2,62,6],[6,8,13,11],[16,8,25,11],[30,8,34,11],[1,1,1,4],[37,8,50,11]]}
[]
[null,"COMMANDE"]
[]
[]
[null,null,"Commande UCE ( Unique Confort Electronique)"]
[null,null,null,null,null,null,null,null,"Bref descriptif"]
[null,null,null,null,null,null,null,null,"Bref descriptif La structure du programme UCE, avec un total de 12 emplacements de mémoire, est basée sur un maximum de 9 cycles, qui peuvent être répétés jusqu’à un maximum de 9 fois pour permettre la meilleure adaptation possible aux raisins. La priorité est donnée à une extraction délicate et la plus rapide possible, avec une faible pression de pressage. L‘opérateur peut non seulement créer n‘importe quelle étape du programme, mais aussi contrôler automatiquement les étapes et la fin du programme. "]
[]
[]
[]
[]
[]
[]
[]
[]
[null,null,null,null,null,null,null,null,"Bref descriptif"]
[null,null,null,null,null,null,null,null,"Le contrôle de perte de charge peut être activé pendant chaque cycle pour optimiser le déroulement du programme. Cela permet d‘optimiser le déroulement et la fin du programme, dans le sens d‘une réduction du temps de pressage. Si un faible débit de jus est mesuré dans un intervalle de temps, un raccourcissement du temps de maintien de la pression active est initié. Le programme passe ensuite au niveau de pression suivant, avant que le temps de maintien de la pression programmé ne se soit écoulé. Si un débit de jus inférieur est détecté à la pression maximale d‘un cycle, aucune répétition du cycle ne sera effectuée. Dans ce cas, le programme démarre automatiquement au cycle suivant. "]
[]
[]
[]
[]
[]
[]
[]
[]
[]
[]
[]
[null,null,"Programme VSQ ( Very Special Quality )"]
[null,null,null,null,null,null,null,null,"Bref descriptif"]
[null,null,null,null,null,null,null,null,"Le programme automatique VSQ est un programme de pressurage universel. Pour le traitement individuel de chaque programme, il est possible de répéter des cycles individuels au gré, de sauter ou de répéter des séquences entières de cycles et de cibler des cycles spécifiques. "]
[]
[]
[]
[]
[]
[null,null,null,null,null,null,null,null,"Caractéristiques et avantages "]
[null,null,null,null,null,null,null,null,"Le programme automatique VSQ permet de programmer librement jusqu‘à 99 cycles. Chaque cycle comprend un niveau de pression pour augmenter la pression jusqu‘à la pression de consigne (pn), un temps de maintien de la pression (dn) et un certain nombre de rotations (Rn). Ces paramètres sont librement programmables. Pour le traitement individuel de chaque programme, il est possible : \n • de répéter des cycles individuels au gré\n • de sauter ou de répéter des séquences entières de cycles \n • de cibler des cycles spécifiques. \nJusqu‘à 12 (6 + 6) programmes peuvent être sauvegardés et activés. WILLMES fournit la commande avec des programmes adaptés à la plupart des vendanges foulées. Tous les paramètres entrés peuvent être modifiés , même pendant l‘exécution du programme. Chaque programme peut avoir son propre nom à l‘écran. "]
[]
[]
[]
[]
[]
[]
[]
[]
[]
[]
[]
[]
[]
[]
[]
[]
[null,null,"Ecran tactile en couleur, 10''"]

{"sheet":"POMPE","index":8,"n_rows":12,"n_cols":9,"rows_kept":12,"cut":false,"hidden":false,"merged":[[6,8,8,11],[11,8,28,11],[1,1,1,4],[6,2,28,6]]}
[]
[null,"POMPE A MOÛT"]
[]
[]
[null,null,"Commande de la pompe à moût"]
[null,null,null,null,null,null,null,null,"Bref descriptif"]
[null,null,null,null,null,null,null,null,"La commande de la pompe à moût permet d’éviter tout débordement de la maie ou toute marche à vide de la pompe à moût en activant et désactivant ladite pompe."]
[]
[]
[]
[null,null,null,null,null,null,null,null,"Bref descriptif"]
[null,null,null,null,null,null,null,null,"La maie du pressoir est dotée d’une jauge de niveau qui permet de contrôler en permanence le niveau de remplissage de la maie et de transmettre cette information au système de commande du pressoir. Dès qu‘un certain niveau de remplissage est atteint, le système de commande du pressoir envoie un signal de démarrage ou d‘arrêt à la pompe à moût du client (la puissance de la pompe doit être spécifiée lors de la commande). Si le niveau de remplissage de la maie dépasse une valeur critique (par ex. 70 %), le pressurage est interrompu et un signal sonore retentit. En cas d’augmentation (par ex. 95 %), la vanne de vidange du jus se ferme automatiquement (gamme SIGMA) ou la cuve pivote de 90° (gamme MERLIN), afin d’éviter tout débordement de la maie. Les paramètres suivants peuvent être réglés via le système de commande du pressoir : • Valeur de consigne à laquelle la pompe démarre (par ex. 60 %) ; • Valeur de consigne à laquelle la pompe s’arrête (par ex. 5 %) ; • Valeur de consigne à laquelle le pressurage est interrompu (par ex. 70 %) ; • Valeur de consigne à laquelle la vanne de vidange du jus se ferme ou le pressoir tourne (par ex. 90 %) ; • Vidange manuelle de la maie (en mode pas à pas). "]

{"sheet":"ACCESSOIRES","index":9,"n_rows":16,"n_cols":9,"rows_kept":16,"cut":false,"hidden":false,"merged":[[1,1,1,4],[7,8,11,11],[15,8,26,11]]}
[]
[null,"ACCESSOIRES DISPONIBLES"]
[]
[]
[null,null,"Système de dosage de SO2"]
[null,null,"En combinaison avec Mesure de débit"]
[null,null,null,null,null,null,null,null,"Bref descriptif"]
[null,null,null,null,null,null,null,null,"Le système de dosage de SO2 automatique assure un ajout continu de SO2 avec un contrôle maximal du processus. Le système garantit une protection continue et efficace contre l‘oxydation sans accumulation de concentration excessive, qui pourrait résulter de la méthode d‘ajout manuelle. "]
[]
[]
[]
[]
[]
[]
[null,null,null,null,null,null,null,null,"Caractéristiques et avantages "]
[null,null,null,null,null,null,null,null,"Le SO2 est automatiquement dosé en fonction des valeurs définies. En fonction des paramètres, la solution de SO2 peut être introduite dans le système à différents endroits, à savoir directement dans la maie ou dans la ligne de moulage après la pompe à moût. Le dosage du SO2 permet de définir la concentration de SO2 souhaitée dans le jus ; l‘ajout nécessaire est automatiquement calculé et lancé en continu. La cylindrée des pompes doseuses à diaphragme de haute qualité peut être ajustée librement, ce qui permet de traiter de petites comme de grandes quantités de moût. En combinaison avec l‘option de séparation des moûts, la concentration du dosage de SO2 peut être adaptée aux différentes fractions de moût. Le dosage du SO2 requiert l‘option supplémentaire de débitmètre. "]

{"sheet":"REMPLISSAGE","index":10,"n_rows":35,"n_cols":10,"rows_kept":35,"cut":false,"hidden":false,"merged":[[1,1,1,3]]}
[]
[null,"REMPLISSAGE PAR PORTE"]
[]
[]
[null,null,null,null,null,null,"Support de tuyau de vendange"]
[]
[]
[]
[]
[]
[]
[]
[]
[]
[]
[]
[]
[]
[]
[]
[]
[]
[]
[]
[]
[]
[]
[]
[]
[]
[]
[]
[]
[null,null,null,null,null,null,null,null,null,"Trémie "]
[null,null,null,null,null,null,null,null,null,"Avec guidage pour chariot élévateur"]